[Event "Early-Titled-Tuesday-Blitz-July-09-2024"]
[Site "Chess.com"]
[Date "2024.07.09"]
[Round "4"]
[White "Nf3c5"]
[Black "DarkPassenger007"]
[Result "0-1"]
[WhiteElo "2653"]
[BlackElo "2364"]
[TimeControl "180+1"]
[EndTime "8:40:08 PDT"]
[Termination "DarkPassenger007 won on time"]

1. e4 {[%clk 0:03:00.9]} 1... c5 {[%clk 0:02:59.6]} 2. Nc3 {[%clk 0:02:58.2]}
2... d6 {[%clk 0:02:57.5]} 3. f4 {[%clk 0:02:55.7]} 3... g6 {[%clk 0:02:52.5]}
4. Nf3 {[%clk 0:02:55.4]} 4... Bg7 {[%clk 0:02:51.9]} 5. Bb5+ {[%clk 0:02:50.2]}
5... Bd7 {[%clk 0:02:50.8]} 6. Bc4 {[%clk 0:02:49.4]} 6... Nf6 {[%clk
0:02:45.9]} 7. O-O {[%clk 0:02:40]} 7... O-O {[%clk 0:02:45.7]} 8. Qe1 {[%clk
0:02:37.6]} 8... a6 {[%clk 0:02:42.7]} 9. a3 {[%clk 0:02:31]} 9... b5 {[%clk
0:02:42.3]} 10. Ba2 {[%clk 0:02:31.4]} 10... Nc6 {[%clk 0:02:34.9]} 11. d3
{[%clk 0:02:28.3]} 11... b4 {[%clk 0:02:25.5]} 12. axb4 {[%clk 0:02:14.9]} 12...
cxb4 {[%clk 0:02:26.4]} 13. Nd5 {[%clk 0:02:10.5]} 13... Nxd5 {[%clk 0:02:22.7]}
14. Bxd5 {[%clk 0:02:11.4]} 14... a5 {[%clk 0:02:04.1]} 15. f5 {[%clk
0:02:08.4]} 15... e6 {[%clk 0:01:44.8]} 16. Bg5 {[%clk 0:01:54.7]} 16... Qb6+
{[%clk 0:01:31.1]} 17. Be3 {[%clk 0:01:49.5]} 17... Qc7 {[%clk 0:01:25.3]} 18.
Qh4 {[%clk 0:01:20]} 18... exd5 {[%clk 0:01:01.1]} 19. f6 {[%clk 0:01:17.9]}
19... Bh8 {[%clk 0:00:49.1]} 20. Qh6 {[%clk 0:00:43]} 20... Bxf6 {[%clk
0:00:37]} 21. Ng5 {[%clk 0:00:43.4]} 21... Bxg5 {[%clk 0:00:35.3]} 22. Bxg5
{[%clk 0:00:44.1]} 22... Qb6+ {[%clk 0:00:23.8]} 23. Kh1 {[%clk 0:00:43.1]}
23... f5 {[%clk 0:00:21.3]} 24. exd5 {[%clk 0:00:32.4]} 24... Ne5 {[%clk
0:00:19.7]} 25. Rae1 {[%clk 0:00:31.9]} 25... Ng4 {[%clk 0:00:19.4]} 26. Qh4
{[%clk 0:00:31.5]} 26... Rae8 {[%clk 0:00:19.1]} 27. h3 {[%clk 0:00:30.5]} 27...
Rxe1 {[%clk 0:00:18.4]} 28. Rxe1 {[%clk 0:00:30.4]} 28... Ne5 {[%clk 0:00:15.5]}
29. d4 {[%clk 0:00:30.2]} 29... Nf7 {[%clk 0:00:14.3]} 30. Bf6 {[%clk
0:00:25.9]} 30... Re8 {[%clk 0:00:14.1]} 31. Be7 {[%clk 0:00:16]} 31... b3
{[%clk 0:00:10.1]} 32. c3 {[%clk 0:00:15.8]} 32... a4 {[%clk 0:00:10.3]} 33. Qf6
{[%clk 0:00:15.4]} 33... a3 {[%clk 0:00:09.7]} 34. bxa3 {[%clk 0:00:15.6]} 34...
b2 {[%clk 0:00:10.2]} 35. Rb1 {[%clk 0:00:15.8]} 35... Qb3 {[%clk 0:00:08]} 36.
Bxd6 {[%clk 0:00:09.7]} 36... Qc2 {[%clk 0:00:06.9]} 37. Rxb2 {[%clk 0:00:10.2]}
37... Qc1+ {[%clk 0:00:06.8]} 38. Kh2 {[%clk 0:00:10.1]} 38... Qxb2 {[%clk
0:00:07.7]} 39. Be5 {[%clk 0:00:09.9]} 39... Nxe5 {[%clk 0:00:06.6]} 40. dxe5
{[%clk 0:00:10.6]} 40... Qxc3 {[%clk 0:00:06.9]} 0-1

[Event "Early-Titled-Tuesday-Blitz-July-09-2024"]
[Site "Chess.com"]
[Date "2024.07.09"]
[Round "4"]
[White "chrisclaireredfield"]
[Black "MrMatesM"]
[Result "1/2-1/2"]
[WhiteElo "2513"]
[BlackElo "2713"]
[TimeControl "180+1"]
[EndTime "8:40:11 PDT"]
[Termination "Game drawn - insufficient material"]

1. Nf3 {[%clk 0:03:00.9]} 1... c5 {[%clk 0:03:00.3]} 2. c4 {[%clk 0:03:00.3]}
2... g6 {[%clk 0:03:00.4]} 3. e3 {[%clk 0:02:59.1]} 3... Bg7 {[%clk 0:03:01]} 4.
d4 {[%clk 0:02:59]} 4... cxd4 {[%clk 0:03:01.4]} 5. exd4 {[%clk 0:02:59]} 5...
d5 {[%clk 0:03:02.1]} 6. Nc3 {[%clk 0:02:57.2]} 6... Nf6 {[%clk 0:03:02.2]} 7.
Bg5 {[%clk 0:02:56.6]} 7... O-O {[%clk 0:02:53.5]} 8. Bxf6 {[%clk 0:02:53.5]}
8... Bxf6 {[%clk 0:02:54.4]} 9. cxd5 {[%clk 0:02:53.5]} 9... Nd7 {[%clk
0:02:53.4]} 10. Bc4 {[%clk 0:02:52]} 10... Nb6 {[%clk 0:02:46.8]} 11. Bb3 {[%clk
0:02:52]} 11... Bg4 {[%clk 0:02:46.6]} 12. O-O {[%clk 0:02:51]} 12... Bxf3
{[%clk 0:02:40.1]} 13. Qxf3 {[%clk 0:02:50.6]} 13... Bxd4 {[%clk 0:02:40.1]} 14.
Rad1 {[%clk 0:02:48.4]} 14... Bxc3 {[%clk 0:02:36.4]} 15. Qxc3 {[%clk
0:02:47.6]} 15... Qd6 {[%clk 0:02:37.1]} 16. Rfe1 {[%clk 0:02:46.6]} 16... Rac8
{[%clk 0:02:37]} 17. Qe5 {[%clk 0:02:46]} 17... Rc7 {[%clk 0:02:29.2]} 18. g3
{[%clk 0:02:44.1]} 18... Rd8 {[%clk 0:02:27.8]} 19. Rd2 {[%clk 0:02:35.3]} 19...
Qxe5 {[%clk 0:02:28]} 20. Rxe5 {[%clk 0:02:34.7]} 20... Rd6 {[%clk 0:02:28.5]}
21. Rde2 {[%clk 0:02:26]} 21... Kf8 {[%clk 0:02:28.6]} 22. Kg2 {[%clk
0:02:23.5]} 22... a5 {[%clk 0:02:28.8]} 23. a3 {[%clk 0:02:22.8]} 23... Rcd7
{[%clk 0:02:14.9]} 24. Rc2 {[%clk 0:02:05.4]} 24... Nxd5 {[%clk 0:02:04.2]} 25.
Rc5 {[%clk 0:01:35.5]} 25... Nf6 {[%clk 0:01:48.8]} 26. Rxa5 {[%clk 0:01:31.6]}
26... Rd2 {[%clk 0:01:49.2]} 27. Ra8+ {[%clk 0:01:22.6]} 27... Kg7 {[%clk
0:01:49.4]} 28. Ba4 {[%clk 0:01:20.2]} 28... Rc7 {[%clk 0:01:45.9]} 29. h3
{[%clk 0:00:49.9]} 29... Rxb2 {[%clk 0:01:43.5]} 30. Rb8 {[%clk 0:00:45.3]}
30... e6 {[%clk 0:01:40.3]} 31. Rb5 {[%clk 0:00:42.4]} 31... Rxb5 {[%clk
0:01:39.9]} 32. Bxb5 {[%clk 0:00:42.6]} 32... Nd5 {[%clk 0:01:40.3]} 33. a4
{[%clk 0:00:40.1]} 33... b6 {[%clk 0:01:40.9]} 34. Be2 {[%clk 0:00:34.9]} 34...
Rc2 {[%clk 0:01:28.9]} 35. Bf3 {[%clk 0:00:35]} 35... Ne3+ {[%clk 0:01:29.4]}
36. Kg1 {[%clk 0:00:35.2]} 36... Nc4 {[%clk 0:01:29.8]} 37. Rc8 {[%clk 0:00:31]}
37... Kf6 {[%clk 0:01:24.8]} 38. Bb7 {[%clk 0:00:21.2]} 38... h5 {[%clk
0:01:17]} 39. Ba6 {[%clk 0:00:20.3]} 39... Na3 {[%clk 0:01:17.2]} 40. Rb8 {[%clk
0:00:17.9]} 40... Rc6 {[%clk 0:01:13.1]} 41. Bb5 {[%clk 0:00:16.9]} 41... Rd6
{[%clk 0:01:12.4]} 42. Be8 {[%clk 0:00:16.4]} 42... Ke7 {[%clk 0:01:10.7]} 43.
Kg2 {[%clk 0:00:13.9]} 43... Nc4 {[%clk 0:01:07]} 44. Bb5 {[%clk 0:00:13.4]}
44... Ne5 {[%clk 0:01:07.4]} 45. Rb7+ {[%clk 0:00:13.6]} 45... Kf6 {[%clk
0:01:07.6]} 46. Be8 {[%clk 0:00:13.4]} 46... Rd8 {[%clk 0:01:04.5]} 47. f4
{[%clk 0:00:09.2]} 47... Rxe8 {[%clk 0:01:03.4]} 48. fxe5+ {[%clk 0:00:09.6]}
48... Kxe5 {[%clk 0:01:04]} 49. Rxf7 {[%clk 0:00:10.1]} 49... Ra8 {[%clk
0:01:03.7]} 50. Rb7 {[%clk 0:00:09.9]} 50... Rxa4 {[%clk 0:01:03.9]} 51. Rxb6
{[%clk 0:00:10.3]} 51... Ra2+ {[%clk 0:01:02.4]} 52. Kf3 {[%clk 0:00:10.6]}
52... Ra3+ {[%clk 0:01:03]} 53. Kf2 {[%clk 0:00:11.1]} 53... Kf5 {[%clk
0:01:03.6]} 54. Rb8 {[%clk 0:00:10.8]} 54... e5 {[%clk 0:01:03.7]} 55. Rf8+
{[%clk 0:00:10.2]} 55... Ke4 {[%clk 0:01:04.3]} 56. Rf6 {[%clk 0:00:09.9]} 56...
Ra2+ {[%clk 0:01:04.7]} 57. Kf1 {[%clk 0:00:09.8]} 57... g5 {[%clk 0:01:04.8]}
58. g4 {[%clk 0:00:08.2]} 58... hxg4 {[%clk 0:01:04.5]} 59. hxg4 {[%clk
0:00:08.6]} 59... Ke3 {[%clk 0:01:04.9]} 60. Rf5 {[%clk 0:00:07.9]} 60... e4
{[%clk 0:01:05.4]} 61. Rxg5 {[%clk 0:00:08.4]} 61... Ra1+ {[%clk 0:01:06]} 62.
Kg2 {[%clk 0:00:08.8]} 62... Ke2 {[%clk 0:01:06.4]} 63. Rb5 {[%clk 0:00:08.8]}
63... e3 {[%clk 0:01:07.2]} 64. Rb2+ {[%clk 0:00:08.7]} 64... Kd3 {[%clk
0:01:07.7]} 65. Rb3+ {[%clk 0:00:09.2]} 65... Kd4 {[%clk 0:01:08]} 66. Kf3
{[%clk 0:00:07.5]} 66... Rf1+ {[%clk 0:01:07.5]} 67. Ke2 {[%clk 0:00:07.8]}
67... Rf2+ {[%clk 0:01:08.1]} 68. Ke1 {[%clk 0:00:08.3]} 68... Rg2 {[%clk
0:01:08.7]} 69. Rb8 {[%clk 0:00:08]} 69... Kd3 {[%clk 0:01:07.8]} 70. Rd8+
{[%clk 0:00:08]} 70... Ke4 {[%clk 0:01:08.1]} 71. Re8+ {[%clk 0:00:08.5]} 71...
Kf3 {[%clk 0:01:08.4]} 72. Rf8+ {[%clk 0:00:09]} 72... Kg3 {[%clk 0:01:09]} 73.
Re8 {[%clk 0:00:09.2]} 73... Kf4 {[%clk 0:01:09.1]} 74. Rf8+ {[%clk 0:00:09.6]}
74... Kxg4 {[%clk 0:01:09.7]} 75. Rg8+ {[%clk 0:00:09.5]} 75... Kf3 {[%clk
0:01:10.3]} 76. Rxg2 {[%clk 0:00:09.9]} 76... Kxg2 {[%clk 0:01:10.9]} 77. Ke2
{[%clk 0:00:10.6]} 77... Kg3 {[%clk 0:01:10.7]} 78. Kxe3 {[%clk 0:00:11]}
1/2-1/2

[Event "Early-Titled-Tuesday-Blitz-July-09-2024"]
[Site "Chess.com"]
[Date "2024.07.09"]
[Round "4"]
[White "Potosino1970"]
[Black "Alexander_Donchenko"]
[Result "1-0"]
[WhiteElo "2720"]
[BlackElo "2903"]
[TimeControl "180+1"]
[EndTime "8:40:12 PDT"]
[Termination "Potosino1970 won by resignation"]

1. e4 {[%clk 0:03:00.9]} 1... c6 {[%clk 0:03:00.5]} 2. Nc3 {[%clk 0:02:55.6]}
2... d5 {[%clk 0:03:01.4]} 3. Nf3 {[%clk 0:02:55.6]} 3... dxe4 {[%clk
0:02:59.3]} 4. Nxe4 {[%clk 0:02:55]} 4... Nf6 {[%clk 0:03:00.2]} 5. Qe2 {[%clk
0:02:51.1]} 5... Nxe4 {[%clk 0:03:00.3]} 6. Qxe4 {[%clk 0:02:52]} 6... Nd7
{[%clk 0:03:01]} 7. Bc4 {[%clk 0:02:50.6]} 7... Nf6 {[%clk 0:03:01.7]} 8. Ne5
{[%clk 0:02:50.6]} 8... e6 {[%clk 0:03:02.4]} 9. Qe2 {[%clk 0:02:50.5]} 9... b5
{[%clk 0:03:01.8]} 10. Bb3 {[%clk 0:02:44.4]} 10... Qc7 {[%clk 0:03:00]} 11. O-O
{[%clk 0:02:43.7]} 11... Bd6 {[%clk 0:02:59.7]} 12. d4 {[%clk 0:02:43.6]} 12...
O-O {[%clk 0:02:59.9]} 13. c3 {[%clk 0:02:43.6]} 13... a5 {[%clk 0:02:59.1]} 14.
a3 {[%clk 0:02:36.1]} 14... c5 {[%clk 0:02:58.8]} 15. Re1 {[%clk 0:02:29.6]}
15... Bb7 {[%clk 0:02:49.2]} 16. Bg5 {[%clk 0:02:28.2]} 16... Ne4 {[%clk
0:02:46.2]} 17. Bh4 {[%clk 0:02:24.2]} 17... cxd4 {[%clk 0:02:24.7]} 18. cxd4
{[%clk 0:02:23.6]} 18... Bxe5 {[%clk 0:02:25.1]} 19. dxe5 {[%clk 0:02:20.9]}
19... Qxe5 {[%clk 0:02:26]} 20. Bc2 {[%clk 0:02:07.4]} 20... f5 {[%clk
0:02:24.6]} 21. Bb3 {[%clk 0:02:05.3]} 21... a4 {[%clk 0:02:18.1]} 22. Ba2
{[%clk 0:02:04.6]} 22... Bd5 {[%clk 0:02:04.1]} 23. Bxd5 {[%clk 0:01:56.1]}
23... exd5 {[%clk 0:02:05]} 24. Rad1 {[%clk 0:01:55.9]} 24... Qd6 {[%clk
0:01:36.4]} 25. f3 {[%clk 0:01:51]} 25... Nf6 {[%clk 0:01:34.1]} 26. Bxf6 {[%clk
0:01:47.7]} 26... Rxf6 {[%clk 0:01:24.7]} 27. Qxb5 {[%clk 0:01:47.4]} 27... Qb6+
{[%clk 0:01:10.5]} 28. Qxb6 {[%clk 0:01:46.4]} 28... Rxb6 {[%clk 0:01:11.4]} 29.
Rxd5 {[%clk 0:01:35.4]} 29... Rxb2 {[%clk 0:01:11.6]} 30. Rxf5 {[%clk 0:01:34]}
30... Rb3 {[%clk 0:01:08.1]} 31. Re7 {[%clk 0:01:33.7]} 31... Kh8 {[%clk
0:00:59.9]} 32. Ra7 {[%clk 0:01:28.6]} 32... Rc8 {[%clk 0:00:41.1]} 33. Rxa4
{[%clk 0:01:25.9]} 33... h6 {[%clk 0:00:41.5]} 34. Rf7 {[%clk 0:01:20.2]} 34...
Rc2 {[%clk 0:00:25.3]} 35. h3 {[%clk 0:01:17.2]} 35... Rc8 {[%clk 0:00:03.4]}
36. h4 {[%clk 0:01:10.7]} 36... Kg8 {[%clk 0:00:03]} 37. Rd7 {[%clk 0:01:08.7]}
37... h5 {[%clk 0:00:03.4]} 38. Ra5 {[%clk 0:01:06.7]} 38... Rc6 {[%clk
0:00:03.7]} 39. Rxh5 {[%clk 0:00:59.6]} 39... Rg6 {[%clk 0:00:03.3]} 40. Rg5
{[%clk 0:00:57.5]} 40... Rxg5 {[%clk 0:00:03.2]} 41. hxg5 {[%clk 0:00:58.4]}
41... Rxa3 {[%clk 0:00:04.1]} 42. g6 {[%clk 0:00:55.7]} 42... Kf8 {[%clk
0:00:03.7]} 43. Rd6 {[%clk 0:00:54.6]} 43... Ra4 {[%clk 0:00:03.1]} 44. Kf2
{[%clk 0:00:54.2]} 44... Ke7 {[%clk 0:00:03.7]} 45. Rb6 {[%clk 0:00:53.6]} 45...
Ra2+ {[%clk 0:00:04.1]} 46. Kg3 {[%clk 0:00:53.5]} 46... Rc2 {[%clk 0:00:05]}
47. f4 {[%clk 0:00:53.2]} 47... Rd2 {[%clk 0:00:04.8]} 48. Kf3 {[%clk
0:00:53.3]} 48... Rc2 {[%clk 0:00:04.8]} 49. g4 {[%clk 0:00:53.4]} 49... Rc4
{[%clk 0:00:05]} 50. f5 {[%clk 0:00:53]} 50... Ra4 {[%clk 0:00:05]} 51. Rb7+
{[%clk 0:00:53.1]} 51... Kf6 {[%clk 0:00:05.1]} 52. Rf7+ {[%clk 0:00:52.9]}
52... Kg5 {[%clk 0:00:05.9]} 53. Rxg7 {[%clk 0:00:48.7]} 53... Rf4+ {[%clk
0:00:06]} 54. Ke3 {[%clk 0:00:48]} 54... Kxg4 {[%clk 0:00:04.4]} 55. Rf7 {[%clk
0:00:45.9]} 55... Rxf5 {[%clk 0:00:04.9]} 56. Rxf5 {[%clk 0:00:45.5]} 56... Kxf5
{[%clk 0:00:05.8]} 57. g7 {[%clk 0:00:45.8]} 1-0

[Event "Early-Titled-Tuesday-Blitz-July-09-2024"]
[Site "Chess.com"]
[Date "2024.07.09"]
[Round "4"]
[White "KogotBobra17"]
[Black "nicolochessit"]
[Result "1-0"]
[WhiteElo "2662"]
[BlackElo "2366"]
[TimeControl "180+1"]
[EndTime "8:40:12 PDT"]
[Termination "KogotBobra17 won on time"]

1. f4 {[%clk 0:03:00.9]} 1... Nf6 {[%clk 0:02:58.1]} 2. Nf3 {[%clk 0:03:01.1]}
2... d5 {[%clk 0:02:58.5]} 3. g3 {[%clk 0:03:01.4]} 3... g6 {[%clk 0:02:59]} 4.
Bg2 {[%clk 0:03:01.6]} 4... Bg7 {[%clk 0:02:59.9]} 5. O-O {[%clk 0:03:02.1]}
5... O-O {[%clk 0:03:00.8]} 6. d3 {[%clk 0:03:02.9]} 6... c5 {[%clk 0:03:01]} 7.
Nc3 {[%clk 0:03:03.6]} 7... Nc6 {[%clk 0:03:00.7]} 8. e4 {[%clk 0:03:03.8]} 8...
dxe4 {[%clk 0:02:51.4]} 9. dxe4 {[%clk 0:03:03.7]} 9... Nd4 {[%clk 0:02:51.5]}
10. e5 {[%clk 0:03:02.6]} 10... Ng4 {[%clk 0:02:32.8]} 11. h3 {[%clk 0:02:33.7]}
11... Nh6 {[%clk 0:02:29.7]} 12. Nxd4 {[%clk 0:02:34.2]} 12... cxd4 {[%clk
0:02:29.4]} 13. Ne2 {[%clk 0:02:34.7]} 13... f6 {[%clk 0:01:46.2]} 14. Qxd4
{[%clk 0:01:37.6]} 14... Qxd4+ {[%clk 0:01:45.5]} 15. Nxd4 {[%clk 0:01:38.5]}
15... fxe5 {[%clk 0:01:46.2]} 16. fxe5 {[%clk 0:01:39.4]} 16... Nf5 {[%clk
0:01:23.9]} 17. Nxf5 {[%clk 0:01:36.3]} 17... Bxf5 {[%clk 0:01:24.8]} 18. Bf4
{[%clk 0:01:35]} 18... Bxc2 {[%clk 0:01:14.7]} 19. Bxb7 {[%clk 0:01:34.6]} 19...
Rab8 {[%clk 0:01:14.7]} 20. Bd5+ {[%clk 0:01:32.8]} 20... Kh8 {[%clk 0:01:14.1]}
21. b3 {[%clk 0:01:33.4]} 21... g5 {[%clk 0:01:07.6]} 22. Bxg5 {[%clk
0:01:32.4]} 22... Bxe5 {[%clk 0:01:07.6]} 23. Bxe7 {[%clk 0:00:45.2]} 23... Bxa1
{[%clk 0:00:30.2]} 24. Rxa1 {[%clk 0:00:31.5]} 24... Rf5 {[%clk 0:00:20.6]} 25.
Be6 {[%clk 0:00:32]} 25... Rf3 {[%clk 0:00:18.2]} 26. Bd6 {[%clk 0:00:21]} 26...
Rb5 {[%clk 0:00:14.4]} 27. Rc1 {[%clk 0:00:18.9]} 27... Rf6 {[%clk 0:00:13.7]}
28. Re1 {[%clk 0:00:16.2]} 28... Kg7 {[%clk 0:00:11.2]} 29. Be5 {[%clk
0:00:15.5]} 29... Rxe5 {[%clk 0:00:11.3]} 30. Rxe5 {[%clk 0:00:16.4]} 30... Bb1
{[%clk 0:00:12.1]} 31. a3 {[%clk 0:00:16.4]} 31... Ba2 {[%clk 0:00:12.7]} 32.
Bc4 {[%clk 0:00:16.6]} 32... Rf3 {[%clk 0:00:10.8]} 33. Kg2 {[%clk 0:00:16.9]}
33... Rc3 {[%clk 0:00:10.3]} 34. Re7+ {[%clk 0:00:17.5]} 34... Kf6 {[%clk
0:00:09.9]} 35. Rxa7 {[%clk 0:00:18.2]} 35... h5 {[%clk 0:00:09.6]} 36. Rb7
{[%clk 0:00:17.7]} 36... Kg5 {[%clk 0:00:08.7]} 37. Rb5+ {[%clk 0:00:17.8]}
37... Kh6 {[%clk 0:00:08.9]} 38. g4 {[%clk 0:00:18.2]} 38... h4 {[%clk
0:00:08.9]} 39. Rh5+ {[%clk 0:00:17.9]} 39... Kg6 {[%clk 0:00:09.3]} 40. Rxh4
{[%clk 0:00:18.8]} 40... Bb1 {[%clk 0:00:08.6]} 41. Rh5 {[%clk 0:00:18.7]} 41...
Be4+ {[%clk 0:00:08.6]} 42. Kf2 {[%clk 0:00:19.3]} 42... Kf6 {[%clk 0:00:03.8]}
43. Rb5 {[%clk 0:00:18.5]} 43... Kg6 {[%clk 0:00:03.6]} 44. Rb6+ {[%clk
0:00:19]} 44... Kg5 {[%clk 0:00:03.7]} 45. a4 {[%clk 0:00:19.7]} 45... Rxh3
{[%clk 0:00:01.7]} 46. a5 {[%clk 0:00:19.5]} 46... Kf4 {[%clk 0:00:01.6]} 47.
Rf6+ {[%clk 0:00:18.3]} 47... Ke5 {[%clk 0:00:02.1]} 48. Rf8 {[%clk 0:00:17.4]}
1-0

[Event "Early-Titled-Tuesday-Blitz-July-09-2024"]
[Site "Chess.com"]
[Date "2024.07.09"]
[Round "4"]
[White "David_Arutinian"]
[Black "FGHSMN"]
[Result "1-0"]
[WhiteElo "2836"]
[BlackElo "2990"]
[TimeControl "180+1"]
[EndTime "8:40:14 PDT"]
[Termination "David_Arutinian won on time"]

1. Nf3 {[%clk 0:03:00.9]} 1... Nf6 {[%clk 0:02:58.7]} 2. c4 {[%clk 0:03:00.8]}
2... b6 {[%clk 0:02:59]} 3. g3 {[%clk 0:03:00.5]} 3... Bb7 {[%clk 0:02:59.9]} 4.
Bg2 {[%clk 0:03:01.1]} 4... g6 {[%clk 0:03:00.3]} 5. O-O {[%clk 0:03:01.4]} 5...
Bg7 {[%clk 0:03:01]} 6. d4 {[%clk 0:03:01.8]} 6... O-O {[%clk 0:03:01.1]} 7. d5
{[%clk 0:02:58.8]} 7... Ne4 {[%clk 0:03:01]} 8. Qc2 {[%clk 0:02:57.9]} 8... f5
{[%clk 0:03:00.7]} 9. Nbd2 {[%clk 0:02:57.2]} 9... Nc5 {[%clk 0:02:59.5]} 10. e4
{[%clk 0:02:53]} 10... e6 {[%clk 0:02:55.6]} 11. Rb1 {[%clk 0:02:43.4]} 11... a5
{[%clk 0:02:53.6]} 12. exf5 {[%clk 0:02:33.6]} 12... exf5 {[%clk 0:02:39.2]} 13.
Re1 {[%clk 0:02:25.8]} 13... Nba6 {[%clk 0:02:38.6]} 14. a3 {[%clk 0:02:26.4]}
14... a4 {[%clk 0:02:37.4]} 15. Ne5 {[%clk 0:02:18.2]} 15... Re8 {[%clk
0:02:18.9]} 16. Ndf3 {[%clk 0:02:18.1]} 16... d6 {[%clk 0:02:13.4]} 17. Bg5
{[%clk 0:02:15.3]} 17... Bf6 {[%clk 0:02:11.7]} 18. Bxf6 {[%clk 0:02:11.6]}
18... Qxf6 {[%clk 0:02:12.6]} 19. Nc6 {[%clk 0:02:02.1]} 19... Nb3 {[%clk
0:02:06.1]} 20. h4 {[%clk 0:01:59.7]} 20... Nac5 {[%clk 0:02:02]} 21. Ng5 {[%clk
0:01:49.3]} 21... h6 {[%clk 0:01:48.4]} 22. Nh3 {[%clk 0:01:49.2]} 22... g5
{[%clk 0:01:39.4]} 23. hxg5 {[%clk 0:01:47.8]} 23... hxg5 {[%clk 0:01:40.3]} 24.
Rbd1 {[%clk 0:01:35.2]} 24... Kg7 {[%clk 0:01:39.5]} 25. Re2 {[%clk 0:01:05.9]}
25... Bxc6 {[%clk 0:01:33.9]} 26. dxc6 {[%clk 0:01:05.3]} 26... Nd4 {[%clk
0:01:34.6]} 27. Rxe8 {[%clk 0:00:54.8]} 27... Rxe8 {[%clk 0:01:26.1]} 28. Qd2
{[%clk 0:00:54.7]} 28... Ne2+ {[%clk 0:01:05.6]} 29. Kf1 {[%clk 0:00:51.2]}
29... g4 {[%clk 0:01:06]} 30. Nf4 {[%clk 0:00:39.7]} 30... Nxf4 {[%clk
0:01:05.6]} 31. Qxf4 {[%clk 0:00:40.6]} 31... Kg6 {[%clk 0:00:57.6]} 32. Qd2
{[%clk 0:00:35.2]} 32... Qe5 {[%clk 0:00:50.4]} 33. Bd5 {[%clk 0:00:34.1]} 33...
Nb3 {[%clk 0:00:40.5]} 34. Qd3 {[%clk 0:00:31.1]} 34... Qxb2 {[%clk 0:00:33.8]}
35. Kg2 {[%clk 0:00:26]} 35... Re2 {[%clk 0:00:27.9]} 36. Rf1 {[%clk 0:00:21.3]}
36... Nc5 {[%clk 0:00:22.2]} 37. Qd1 {[%clk 0:00:21.4]} 37... Qe5 {[%clk
0:00:13]} 38. Kg1 {[%clk 0:00:19.8]} 38... Kg5 {[%clk 0:00:09.7]} 39. Qc1+
{[%clk 0:00:19.8]} 39... f4 {[%clk 0:00:09.4]} 40. gxf4+ {[%clk 0:00:17.3]}
40... Qxf4 {[%clk 0:00:10.3]} 41. Qd1 {[%clk 0:00:17.7]} 41... Re5 {[%clk
0:00:08.3]} 42. Qc2 {[%clk 0:00:17.5]} 42... Kf6 {[%clk 0:00:06.3]} 43. Qh7
{[%clk 0:00:17.4]} 43... Qg5 {[%clk 0:00:04]} 44. Qxc7 {[%clk 0:00:16.1]} 44...
Kf5 {[%clk 0:00:01.7]} 45. Qc8+ {[%clk 0:00:15.3]} 45... Kg6 {[%clk 0:00:01.1]}
46. Qg8+ {[%clk 0:00:15.2]} 1-0